bitfinex/quotes_SOLUSD_20251202
["timestamp","ask_amount","ask_price","bid_price","bid_amount"]
[1764698512851,0.13123654,139.87,139.86,26.55154038]
[1764698513640,0.2678336,139.87,139.86,26.55154038]
[1764698515259,0.13659706,139.87,139.86,26.55154038]
[1764698518160,0.13659706,139.87,139.86,44.0414853]
[1764698520075,0.13659706,139.87,139.86,36.0814853]
[1764698520371,0.13659706,139.87,139.86,44.0414853]
[1764698523278,0.13659706,139.87,139.86,27.27154038]
[1764698523578,0.28659706,139.87,139.86,16.308864]
[1764698523803,0.13659706,139.87,139.84,3.09266923]
[1764698523978,0.13659706,139.87,139.85,3.09266923]
[1764698524351,0.28659706,139.87,139.85,3.09266923]
[1764698524751,3.24266923,139.86,139.79,0.72]
[1764698524951,3.09266923,139.84,139.78,7.96]
[1764698525165,3.09266923,139.84,139.81,16.308864]
[1764698525375,3.24266923,139.83,139.78,0.72]
[1764698525686,3.24266923,139.83,139.79,19.40153323]
[1764698525687,0.15,139.83,139.79,19.40153323]
[1764698525995,0.15,139.86,139.82,3.09266923]
[1764698526450,0.15,139.86,139.82,7.25455972]
[1764698526646,0.15,139.86,139.83,7.25455972]
[1764698527479,0.15,139.86,139.83,14.40590763]
[1764698530575,0.15,139.86,139.82,7.25455972]
[1764698530576,7.30004823,139.86,139.82,7.25455972]
[1764698530900,7.15102974,139.84,139.81,16.308864]
[1764698531101,14.40558946,139.84,139.81,16.308864]
[1764698531419,7.40455972,139.83,139.79,16.308864]
[1764698531701,7.40455972,139.83,139.79,7.25455972]
[1764698531908,14.40558946,139.84,139.8,7.25455972]
[1764698532076,0.15,139.82,139.8,7.25455972]
[1764698532271,14.40558946,139.84,139.8,7.25455972]
[1764698532594,0.15,139.83,139.8,7.25455972]
[1764698532779,0.15,139.86,139.82,7.25455972]
[1764698532979,0.15,139.86,139.83,7.25455972]
[1764698534372,0.15,139.86,139.83,12.34899908]
[1764698534581,7.28641229,139.87,139.83,12.34899908]
[1764698534790,7.30042118,139.86,139.82,19.5010191]
[1764698534999,19.64942026,139.86,139.82,12.34899908]
[1764698535228,19.64942026,139.86,139.82,19.50095318]
[1764698535527,12.49899908,139.85,139.81,35.8102581]
[1764698535819,12.34899908,139.84,139.81,16.308864]
[1764698536012,12.49899908,139.84,139.81,16.308864]
[1764698536220,0.15,139.83,139.81,16.308864]
[1764698536922,25.02543905,139.86,139.82,19.50078616]
[1764698536923,0.15,139.86,139.82,19.50078616]
[1764698537304,12.49899908,139.85,139.81,16.308864]
[1764698537699,0.15,139.84,139.81,16.308864]
[1764698537894,12.49899908,139.84,139.8,16.308864]
[1764698538100,12.34899908,139.81,139.75,13.05899908]
[1764698538309,12.34899908,139.79,139.75,12.34899908]
[1764698538509,12.34899908,139.79,139.75,19.50454115]
[1764698538710,12.49899908,139.79,139.75,19.50454115]
[1764698539214,19.65263521,139.79,139.75,19.50454115]
[1764698539415,0.15,139.78,139.76,16.308864]
[1764698540240,19.65238529,139.8,139.76,16.308864]
[1764698540446,0.15,139.79,139.76,16.308864]
[1764698540939,7.30369978,139.79,139.76,16.308864]
[1764698541126,19.65269886,139.79,139.76,16.308864]
[1764698541431,0.15,139.79,139.76,16.308864]
[1764698542534,7.96,139.81,139.76,35.81297373]
[1764698542745,0.15,139.84,139.79,12.34899908]
[1764698542907,12.49899908,139.84,139.79,12.34899908]
[1764698543106,19.65044278,139.84,139.8,12.34899908]
[1764698543327,0.15,139.83,139.8,12.34899908]
[1764698543523,12.49899908,139.83,139.77,17.88561439]
[1764698543723,12.49899908,139.83,139.78,12.34899908]
[1764698543947,0.15,139.82,139.78,12.34899908]
[1764698544110,12.34899908,139.83,139.79,12.34899908]
[1764698544616,0.15,139.82,139.79,12.34899908]
[1764698545140,0.15,139.85,139.81,12.34899908]
[1764698545818,0.15,139.85,139.81,11.34899908]
[1764698546405,7.30082012,139.85,139.81,11.34899908]
[1764698546605,0.15,139.85,139.81,11.34899908]
[1764698546805,0.15,139.85,139.82,19.50105171]
[1764698547402,0.15,139.85,139.81,19.50139464]
[1764698547821,0.15,139.85,139.81,20.21139464]
[1764698548707,7.30077155,139.85,139.81,19.50139464]
[1764698549733,0.15,139.85,139.82,12.34899908]
[1764698550124,0.15,139.89,139.84,12.34899908]
[1764698550328,0.15,139.89,139.86,12.34899908]
[1764698550526,7.94,139.9,139.86,12.34899908]
[1764698550843,15.23809543,139.9,139.86,12.34899908]
[1764698551220,15.23809543,139.9,139.87,12.34899908]
[1764698551622,0.2,139.92,139.89,12.34899908]
[1764698552028,0.35,139.92,139.88,19.49757995]
[1764698552343,0.2,139.92,139.9,12.34899908]
[1764698552747,0.2,139.92,139.9,13.05899908]
[1764698552917,0.2,139.92,139.91,12.34899908]
[1764698553118,0.2,139.92,139.9,0.71]
[1764698553315,0.2,139.92,139.91,12.34899908]
[1764698553519,0.2,139.92,139.9,12.34899908]
[1764698553823,0.2,139.92,139.91,12.34899908]
[1764698554031,0.2,139.92,139.9,12.34899908]
[1764698554231,0.2,139.92,139.88,7.79867624]
[1764698554431,0.2,139.92,139.9,12.34899908]
[1764698554927,0.2,139.92,139.91,12.34899908]
[1764698555455,14.63660353,139.93,139.9,11.84899908]
[1764698556131,0.15,139.92,139.88,12.34899908]
[1764698556338,14.63660353,139.93,139.89,12.34899908]
[1764698556522,26.98560261,139.93,139.89,12.34899908]
[1764698558724,26.98560261,139.93,139.88,12.34899908]
[1764698558725,0.15,139.92,139.88,12.34899908]
[1764698558948,12.49899908,139.92,139.87,12.34899908]
[1764698559133,12.34899908,139.9,139.86,12.34899908]
[1764698559338,19.49747288,139.89,139.85,12.34899908]
[1764698559538,19.64747288,139.89,139.84,12.34899908]
[1764698559742,19.64747288,139.89,139.84,12.99899908]
[1764698560147,12.34899908,139.86,139.82,12.34899908]
[1764698560446,12.34899908,139.86,139.84,12.34899908]
[1764698560447,7.94,139.86,139.84,12.34899908]
[1764698560624,7.94,139.88,139.85,12.34899908]
[1764698561054,7.94,139.88,139.83,0.65]
[1764698561236,7.94,139.88,139.84,12.34899908]
[1764698561546,12.34899908,139.86,139.82,12.34899908]
[1764698561724,0.15,139.85,139.81,12.34899908]
[1764698561924,0.15,139.85,139.81,28.65786308]
[1764698562141,0.15,139.85,139.81,29.32786308]
[1764698562338,12.34899908,139.86,139.82,12.34899908]
[1764698562543,12.49899908,139.86,139.82,12.34899908]
[1764698562850,7.30033412,139.86,139.82,12.34899908]
[1764698563059,15.09033412,139.86,139.82,12.34899908]
[1764698563261,15.09033412,139.86,139.82,13.01899908]
[1764698563437,7.94,139.86,139.82,7.15184154]
[1764698563636,7.94,139.86,139.84,12.34899908]
[1764698564859,0.15,139.85,139.81,12.34899908]
[1764698565163,15.09003371,139.86,139.82,13.01899908]
[1764698566854,15.09003371,139.86,139.82,20.17101359]
[1764698567847,7.94,139.87,139.84,12.34899908]
[1764698568267,0.15,139.86,139.82,7.15169525]
[1764698568449,20.43899908,139.87,139.83,12.34899908]
[1764698568976,19.64900623,139.86,139.82,7.15169525]
[1764698569263,19.64900623,139.86,139.82,19.50069433]
[1764698569775,19.64900623,139.86,139.82,20.17069433]
[1764698570159,7.15000715,139.86,139.82,20.17069433]
[1764698570360,7.15000715,139.86,139.82,12.65851022]
[1764698571074,7.15000715,139.86,139.81,23.46140489]
[1764698571272,0.15,139.85,139.79,5.50681497]
[1764698571449,12.77681497,139.84,139.79,5.50681497]
[1764698571947,12.92681497,139.84,139.79,5.50681497]
[1764698572174,12.92681497,139.84,139.8,0.67]
[1764698572357,7.94,139.84,139.8,5.50681497]
[1764698572559,7.94,139.84,139.81,4.83681497]
[1764698572880,7.94,139.84,139.81,5.50681497]
[1764698573472,15.09128321,139.84,139.81,0.67]
[1764698573677,15.09128321,139.84,139.76,21.58675989]
[1764698573678,4.83681497,139.82,139.76,0.67]
[1764698573872,4.83681497,139.82,139.77,4.83681497]
[1764698574184,7.94,139.81,139.79,4.83681497]
[1764698574370,7.94,139.81,139.78,4.83681497]
[1764698575075,7.94,139.81,139.78,5.50681497]
[1764698575276,7.94,139.81,139.8,4.83681497]
[1764698576050,7.94,139.81,139.8,5.50681497]
[1764698576585,7.3008808,139.85,139.8,12.65989079]
[1764698576871,19.92769577,139.85,139.81,5.50681497]
[1764698577079,20.07769577,139.85,139.8,12.65989079]
[1764698577457,20.07769577,139.85,139.81,0.67]
[1764698577671,20.07769577,139.85,139.8,7.15307582]
[1764698577880,0.15,139.84,139.8,11.98989079]
[1764698578190,7.30141455,139.84,139.8,11.98989079]
[1764698578497,7.15141455,139.84,139.8,12.65989079]
[1764698578703,7.15141455,139.84,139.81,5.50681497]
[1764698578990,7.94,139.85,139.82,5.50681497]
[1764698579155,7.94,139.85,139.83,4.83681497]
[1764698579356,7.94,139.85,139.83,5.50681497]
[1764698579658,7.14990127,139.87,139.83,5.50681497]
[1764698579659,0.15,139.89,139.84,5.50681497]
[1764698579864,17.87052579,139.9,139.83,16.308864]
[1764698579865,7.94,139.88,139.85,5.50681497]
[1764698580296,7.14949596,139.87,139.84,4.83681497]
[1764698580478,7.14949596,139.87,139.84,5.50681497]
[1764698580797,0.15,139.86,139.81,0.67]
[1764698580970,4.83681497,139.84,139.8,17.308864]
[1764698581168,4.83681497,139.84,139.8,22.14567897]
[1764698581360,12.77681497,139.85,139.81,5.50681497]
[1764698581564,12.92681497,139.85,139.8,22.14567897]
[1764698581768,7.94,139.85,139.81,5.50681497]
[1764698582189,15.09055933,139.85,139.8,17.308864]
[1764698582366,15.09055933,139.85,139.81,13.02352366]
[1764698583283,15.09055933,139.85,139.81,19.50589409]
[1764698583482,15.09055933,139.85,139.82,0.67]
[1764698583781,7.94,139.85,139.84,12.35352366]
[1764698583982,7.94,139.85,139.83,12.35352366]
[1764698584477,12.35352366,139.93,139.85,25.11880892]
[1764698584678,20.66352366,139.94,139.89,12.35352366]
[1764698585066,20.66352366,139.94,139.89,13.02352366]
[1764698585263,15.45610245,139.94,139.9,12.35352366]
[1764698585665,15.45610245,139.94,139.89,16.308864]
[1764698585666,12.50352366,139.93,139.89,16.308864]
[1764698585892,12.50352366,139.93,139.89,29.33238766]
[1764698586086,15.45610245,139.94,139.91,12.35352366]
[1764698586376,15.45610245,139.94,139.89,16.308864]
[1764698586377,0.2,139.94,139.92,12.35352366]
[1764698586668,19.84946684,139.94,139.9,12.35352366]
[1764698586878,0.15,139.93,139.89,16.308864]
[1764698587081,0.15,139.93,139.89,28.66238766]
[1764698587293,8.11,139.93,139.89,28.66238766]
[1764698587479,7.1469411,139.92,139.89,28.66238766]
[1764698587863,7.1469411,139.92,139.89,29.33238766]
[1764698588495,0.15,139.91,139.86,0.67]
[1764698588677,19.50046476,139.92,139.87,13.02352366]
[1764698588876,7.1469411,139.92,139.88,12.35352366]
[1764698589182,7.2969411,139.92,139.88,12.35352366]
[1764698589588,7.1469411,139.92,139.88,13.02352366]
[1764698590100,0.15,139.91,139.88,12.35352366]
[1764698590395,19.65046476,139.92,139.88,12.35352366]
[1764698590798,0.15,139.91,139.88,12.35352366]
[1764698590970,19.65046476,139.92,139.88,12.35352366]
[1764698591298,12.35352366,139.89,139.85,12.35352366]
[1764698591468,0.15,139.91,139.84,12.35352366]
[1764698591469,7.14949596,139.87,139.84,12.35352366]
[1764698591668,7.14949596,139.87,139.8,1.0]
[1764698591973,7.96,139.86,139.83,12.35352366]
[1764698592374,7.96,139.86,139.82,0.7]
[1764698592575,7.14949596,139.87,139.84,12.35352366]
[1764698592784,15.10915789,139.88,139.85,12.35352366]
[1764698593080,15.10915789,139.88,139.85,13.05352366]
[1764698594197,15.10915789,139.88,139.86,12.35352366]
[1764698594388,17.87176972,139.89,139.86,13.05352366]
[1764698594389,7.1485548,139.89,139.86,13.05352366]
[1764698594706,7.96,139.9,139.88,12.35352366]
[1764698594916,7.96,139.9,139.87,12.35352366]
[1764698595113,15.1080093,139.9,139.87,13.05352366]
[1764698596483,15.1080093,139.9,139.87,7.94985491]
[1764698597202,0.15,139.89,139.86,16.308864]
[1764698597406,15.1080093,139.9,139.86,23.55871891]
[1764698597782,0.15,139.89,139.86,7.24985491]
[1764698598099,0.15,139.89,139.85,7.24985491]
[1764698598804,7.14898484,139.88,139.85,7.24985491]
[1764698598997,7.14898484,139.88,139.84,7.24985491]
[1764698599206,8.11,139.87,139.83,7.24985491]
[1764698599699,8.11,139.87,139.83,23.55871891]
[1764698599873,7.96,139.87,139.84,7.24985491]
[1764698600078,7.96,139.87,139.86,7.24985491]
[1764698600300,7.96,139.87,139.85,7.94985491]
[1764698601099,7.96,139.87,139.86,7.24985491]
[1764698601410,7.96,139.87,139.86,7.94985491]
[1764698601579,7.96,139.89,139.86,7.94985491]
[1764698602490,7.96,139.89,139.86,15.09973005]
[1764698602717,7.96,139.89,139.88,7.24985491]
[1764698603026,7.96,139.89,139.87,7.94985491]
[1764698603398,7.14754785,139.91,139.87,7.94985491]
[1764698603595,15.10754785,139.91,139.88,7.24985491]
[1764698603794,7.96,139.91,139.88,7.94985491]
[1764698603995,7.14708354,139.92,139.86,7.14987514]
[1764698603996,7.14663162,139.93,139.9,7.24985491]
[1764698604497,8.16,139.94,139.91,7.94985491]
[1764698604691,8.16,139.94,139.92,7.24985491]
[1764698604904,0.2,139.94,139.92,7.94985491]
[1764698605101,0.2,139.94,139.93,7.94985491]
[1764698607218,0.2,139.94,139.93,15.09628526]
[1764698607601,0.2,139.94,139.93,7.84643035]
[1764698607808,0.2,139.94,139.93,15.09628526]
[1764698608204,0.2,139.94,139.93,7.24985491]
[1764698608409,0.2,139.94,139.92,7.24985491]
[1764698608816,0.2,139.94,139.92,15.09677343]
[1764698609323,0.2,139.94,139.91,7.24985491]
[1764698609616,0.2,139.94,139.91,7.94985491]
[1764698610024,0.2,139.94,139.93,7.24985491]
[1764698610442,0.2,139.94,139.93,7.94985491]
[1764698610728,0.2,139.94,139.93,15.09628526]
[1764698612409,0.2,139.94,139.93,7.84643035]
[1764698612714,0.2,139.94,139.93,15.09628526]
[1764698614738,0.2,139.94,139.93,23.90623018]
[1764698614938,0.2,139.94,139.93,15.09628526]
[1764698615240,0.2,139.94,139.93,7.24985491]
[1764698615618,0.2,139.94,139.91,0.7]
[1764698615941,7.34611153,139.94,139.92,16.308864]
[1764698616140,0.2,139.94,139.93,7.24985491]
[1764698616345,0.2,139.94,139.93,7.94985491]
[1764698617419,0.2,139.95,139.94,16.308864]
[1764698617621,0.2,139.95,139.94,24.25871891]
[1764698618047,0.2,139.95,139.94,31.40463858]
[1764698619125,0.2,139.95,139.94,39.36463858]
[1764698620556,0.2,139.95,139.94,48.1745835]
[1764698620767,0.2,139.95,139.94,31.40463858]
[1764698620974,0.2,139.95,139.94,7.24985491]
[1764698621261,7.3454095,139.95,139.93,7.24985491]
[1764698621547,0.2,139.95,139.93,7.24985491]
[1764698623531,7.69585,139.95,139.91,0.68]
[1764698623730,7.34585,139.95,139.92,7.24985491]
[1764698625371,7.34585,139.95,139.92,7.92985491]
[1764698626844,7.34585,139.95,139.92,7.24985491]
[1764698627452,7.34585,139.95,139.91,7.82742401]
[1764698627662,7.34585,139.95,139.92,7.92985491]
[1764698628250,0.2,139.95,139.93,7.24985491]
[1764698628566,0.2,139.95,139.93,3.09058683]
[1764698628781,0.2,139.95,139.92,10.23729568]
[1764698629071,0.2,139.95,139.92,10.91729568]
[1764698629273,0.2,139.95,139.94,3.09058683]
[1764698629475,0.2,139.95,139.94,3.77058683]
[1764698630368,0.2,139.95,139.94,15.06797801]
[1764698631375,0.2,139.95,139.94,7.24205834]
[1764698631877,0.2,139.95,139.94,7.92205834]
[1764698632266,0.2,139.95,139.94,7.24205834]
[1764698633365,7.34551262,139.95,139.92,7.24205834]
[1764698633677,7.34551262,139.95,139.92,7.92205834]
[1764698634060,0.2,139.95,139.93,7.24205834]
[1764698634273,0.2,139.95,139.93,7.14625743]
[1764698634477,0.2,139.95,139.93,15.06831577]
[1764698634867,7.34541549,139.95,139.92,14.38882345]
[1764698635174,7.34541549,139.95,139.92,14.38895566]
[1764698635366,7.34541549,139.95,139.92,15.06895566]
[1764698635567,0.2,139.95,139.92,14.38895566]
[1764698635760,0.2,139.95,139.93,7.92205834]
[1764698635965,0.2,139.95,139.94,7.24205834]
[1764698636268,0.2,139.95,139.94,15.06797801]
[1764698636453,0.2,139.95,139.94,7.82591967]
[1764698636654,0.2,139.95,139.94,15.06797801]
[1764698637506,0.2,139.97,139.96,16.308864]
[1764698637655,0.2,139.97,139.96,23.55092234]
[1764698637854,0.2,139.97,139.96,24.23092234]
[1764698638381,0.2,139.97,139.96,31.37582088]
[1764698638678,0.2,139.97,139.96,23.55092234]
[1764698639968,0.2,139.97,139.95,7.24205834]
[1764698640262,7.89454418,139.97,139.94,7.24205834]
[1764698640466,7.34454418,139.97,139.94,7.92205834]
[1764698640664,7.34454418,139.97,139.92,25.80672186]
[1764698640665,7.34454418,139.97,139.92,7.94]
[1764698640869,0.55,139.96,139.93,7.24205834]
[1764698641067,0.2,139.97,139.95,7.24205834]
[1764698641268,0.2,139.97,139.91,41.32494576]
[1764698641467,0.2,139.97,139.95,7.24205834]
[1764698642293,0.2,139.97,139.96,7.24205834]
[1764698642483,0.2,139.97,139.95,7.24205834]
[1764698643567,0.2,139.97,139.96,7.24205834]
[1764698643893,0.2,139.97,139.96,0.68]
[1764698644192,0.2,139.97,139.96,7.92205834]
[1764698645294,0.2,139.97,139.95,7.24205834]
[1764698645487,0.2,139.97,139.96,7.24205834]
[1764698646098,0.75,139.97,139.94,7.14580602]
[1764698646388,0.2,139.97,139.95,7.24205834]
[1764698646592,0.55,139.96,139.93,7.24205834]
[1764698646767,0.55,139.96,139.92,23.55092234]
[1764698646968,0.55,139.96,139.93,23.55092234]
[1764698647170,7.34442659,139.97,139.93,30.69734828]
[1764698647365,7.89442659,139.97,139.95,7.24205834]
[1764698647678,7.89442659,139.97,139.94,7.24205834]
[1764698648694,0.75,139.97,139.94,14.38795096]
[1764698649002,0.75,139.97,139.94,7.24205834]
[1764698649212,7.89439913,139.97,139.94,7.24205834]
[1764698650713,0.55,139.96,139.93,23.55092234]
[1764698651094,0.55,139.96,139.93,16.308864]
[1764698651305,0.55,139.96,139.92,30.69749193]
[1764698651689,0.55,139.96,139.92,23.45543359]
[1764698651890,0.55,139.96,139.92,30.69749193]
[1764698652106,0.55,139.96,139.92,23.55092234]
[1764698652413,0.55,139.96,139.92,19.39973284]
[1764698652726,0.55,139.96,139.94,3.09086884]
[1764698652894,18.37534427,139.97,139.93,3.09086884]
[1764698653094,0.55,139.96,139.93,3.09086884]
[1764698653516,3.09086884,139.96,139.86,21.45001608]
[1764698653695,0.55,139.95,139.9,3.09086884]
[1764698653896,0.55,139.95,139.9,20.06973284]
[1764698654112,0.55,139.95,139.91,3.09086884]
[1764698654318,0.55,139.95,139.91,3.76086884]
[1764698654828,7.69566724,139.95,139.91,3.76086884]
[1764698654994,0.55,139.95,139.91,10.90824074]
[1764698655494,7.69549249,139.95,139.91,10.90824074]
[1764698655826,7.14549249,139.95,139.91,10.90824074]
[1764698656119,8.14,139.97,139.94,3.09086884]
[1764698656298,8.14,139.97,139.95,3.09086884]
[1764698657187,15.8345139,139.97,139.95,3.09086884]
[1764698657394,15.2845139,139.97,139.95,3.09086884]
[1764698657818,8.14,139.97,139.95,3.09086884]
[1764698658529,8.14,139.97,139.94,4.82810073]
[1764698658700,15.83450505,139.97,139.94,4.82810073]
[1764698658890,0.55,139.96,139.93,4.82810073]
[1764698659701,7.69503011,139.96,139.93,4.82810073]
[1764698660718,7.14503011,139.96,139.92,4.82810073]
[1764698661123,25.00727646,139.96,139.89,7.81828722]
[1764698661303,4.82810073,139.95,139.89,5.49810073]
[1764698661500,7.94,139.94,139.89,5.49810073]
[1764698661906,12.76810073,139.94,139.89,4.82810073]
[1764698662130,12.76810073,139.94,139.9,0.67]
[1764698662431,7.94,139.94,139.9,0.67]
[1764698662604,15.08592692,139.94,139.89,4.82810073]
[1764698662922,4.82810073,139.9,139.85,5.49810073]
[1764698663221,4.82810073,139.88,139.83,0.67]
[1764698663411,8.80994492,139.92,139.83,4.82810073]
[1764698663613,7.94,139.91,139.87,4.82810073]
[1764698663812,15.0876654,139.91,139.88,4.82810073]
[1764698664242,15.0876654,139.91,139.88,5.49810073]
[1764698664404,15.0876654,139.91,139.88,13.01066973]
[1764698664609,15.0876654,139.91,139.88,0.67]
[1764698664808,15.0876654,139.91,139.88,13.01066973]
[1764698665231,15.0876654,139.91,139.87,7.14941021]
[1764698665232,32.95629523,139.91,139.87,12.34066973]
[1764698666020,32.95629523,139.91,139.87,13.01066973]
[1764698666517,32.95629523,139.91,139.87,0.67]
[1764698666723,45.29696496,139.91,139.86,12.34066973]
[1764698667238,45.29696496,139.91,139.86,13.01066973]
[1764698668049,15.0876654,139.91,139.88,12.34066973]
[1764698668464,15.0876654,139.91,139.88,13.01066973]
[1764698668944,15.0876654,139.91,139.88,0.67]
[1764698669118,15.0876654,139.91,139.88,13.01066973]
[1764698670350,15.0876654,139.91,139.87,12.34066973]
[1764698670647,15.0876654,139.91,139.87,13.01066973]
[1764698672038,15.0876654,139.91,139.86,7.14962812]
[1764698672039,45.29696496,139.91,139.85,7.15030552]
[1764698672207,12.34066973,139.9,139.86,12.34066973]
[1764698672412,12.34066973,139.9,139.86,13.01066973]
[1764698672638,12.34066973,139.9,139.86,0.67]
[1764698672836,32.95629523,139.91,139.85,12.34066973]
[1764698673033,32.95629523,139.91,139.88,12.34066973]
[1764698673339,32.95629523,139.91,139.87,12.34066973]
[1764698673839,32.95629523,139.91,139.87,13.02066973]
[1764698674421,32.95629523,139.91,139.87,12.34066973]
[1764698674730,32.95629523,139.91,139.88,0.68]
[1764698675526,32.95629523,139.91,139.87,12.34066973]
[1764698675725,32.95629523,139.91,139.87,13.02066973]
[1764698678150,45.29696496,139.91,139.87,0.68]
[1764698678347,32.95629523,139.91,139.85,13.02066973]
[1764698678534,45.29696496,139.91,139.86,13.02066973]
[1764698678928,12.34066973,139.9,139.86,0.68]
[1764698679324,12.34066973,139.89,139.84,7.15078651]
[1764698679529,12.34066973,139.87,139.83,0.68]
[1764698679745,12.34066973,139.85,139.81,7.15244803]
[1764698679930,12.34066973,139.85,139.8,13.22066973]
[1764698680337,19.49164651,139.85,139.81,0.68]
[1764698680553,12.34066973,139.84,139.8,0.2]
[1764698680756,7.94,139.83,139.8,0.88]
[1764698681046,7.94,139.83,139.8,13.22066973]
[1764698681254,7.94,139.83,139.8,0.88]
[1764698682033,15.09179533,139.83,139.8,0.2]
[1764698682625,27.43246506,139.83,139.8,0.2]
[1764698683023,27.43246506,139.83,139.8,0.88]
[1764698683827,27.43246506,139.83,139.8,0.2]
[1764698685943,27.43246506,139.83,139.8,0.88]
[1764698686444,19.93087848,139.83,139.8,0.88]
[1764698686635,19.93087848,139.83,139.8,0.2]
[1764698688051,4.83908315,139.81,139.8,0.2]
[1764698688247,13.64902807,139.81,139.8,0.2]
[1764698689775,20.80159226,139.81,139.8,0.2]
[1764698690063,20.80159226,139.81,139.79,0.2]
[1764698690357,12.77908315,139.8,139.79,0.2]
[1764698690764,21.58902807,139.8,139.73,0.2]
[1764698690933,4.83908315,139.76,139.73,0.88]
[1764698691137,7.94,139.75,139.73,0.88]
[1764698691657,15.09565579,139.75,139.73,0.2]
[1764698692639,19.93473894,139.75,139.73,0.2]
[1764698693366,19.93473894,139.75,139.73,0.88]
[1764698693972,19.93473894,139.75,139.73,0.2]
[1764698694973,7.94,139.75,139.73,0.2]
[1764698695179,7.94,139.75,139.73,0.88]
[1764698695859,15.09572201,139.75,139.73,0.88]
[1764698696639,7.94,139.75,139.73,0.88]
[1764698696840,7.94,139.75,139.74,0.68]
[1764698699041,19.93471821,139.75,139.73,0.2]
[1764698699943,4.83908315,139.74,139.73,0.2]
[1764698700582,4.83908315,139.74,139.7,0.2]
[1764698700583,25.11880892,139.71,139.7,0.2]
[1764698700740,37.89789207,139.71,139.7,0.2]
[1764698700939,45.05557584,139.71,139.7,0.2]
[1764698701361,25.11880892,139.68,139.67,0.1]
[1764698701550,37.89789207,139.68,139.67,0.1]
[1764698702253,37.89789207,139.68,139.66,0.2]
[1764698702254,8.80994492,139.67,139.66,0.2]
[1764698702564,21.2049263,139.67,139.66,1e-08]
[1764698702765,16.308864,139.67,139.66,1e-08]
[1764698702961,28.70384538,139.67,139.66,1e-08]
[1764698703160,35.86357903,139.67,139.66,1e-08]
[1764698703362,44.67352395,139.67,139.66,1e-08]
[1764698704562,8.80994492,139.66,139.61,0.1]
[1764698704762,12.39498138,139.62,139.61,0.1]
[1764698704963,20.35498138,139.62,139.61,0.1]
[1764698705352,27.51727904,139.62,139.61,0.1]
[1764698705859,7.96,139.62,139.61,0.78]
[1764698707179,7.96,139.62,139.61,0.1]
[1764698707362,7.96,139.62,139.61,0.78]
[1764698707562,15.12229766,139.62,139.61,0.78]
[1764698707757,15.12229766,139.62,139.61,0.1]
[1764698707758,36.32722396,139.62,139.61,0.1]
[1764698707958,36.32722396,139.62,139.45,36.42803224]
[1764698707959,8.80994492,139.57,139.45,0.2129979]
[1764698708174,12.39498138,139.46,139.44,0.78]
[1764698708476,12.39498138,139.49,139.44,13.17498138]
[1764698708797,7.96,139.49,139.45,21.2049263]
[1764698708955,20.35498138,139.51,139.45,21.8849263]
[1764698709156,12.39498138,139.5,139.46,0.68]
[1764698709352,12.39498138,139.48,139.46,0.68]
[1764698709565,7.96,139.51,139.46,24.15937395]
[1764698709787,20.35498138,139.51,139.46,24.15937395]
[1764698710095,20.35498138,139.51,139.47,0.68]
[1764698710254,7.96,139.51,139.47,0.68]
[1764698710455,20.35498138,139.51,139.47,0.68]
[1764698710657,7.96,139.51,139.48,16.308864]
[1764698710872,20.35498138,139.53,139.48,16.308864]
[1764698711058,12.39498138,139.52,139.49,0.68]
[1764698712375,12.39498138,139.5,139.49,16.988864]
[1764698712574,12.39498138,139.5,139.48,16.308864]
[1764698712880,12.39498138,139.5,139.48,17.028864]
[1764698713069,12.39498138,139.5,139.49,16.308864]
[1764698713271,12.39498138,139.51,139.49,17.028864]
[1764698713860,12.39498138,139.51,139.49,0.72]
[1764698714361,12.39498138,139.5,139.49,0.72]
[1764698714574,12.39498138,139.5,139.49,17.028864]
[1764698715318,7.16744419,139.52,139.49,0.72]
[1764698715492,12.39498138,139.5,139.49,0.72]
[1764698716164,12.39498138,139.51,139.49,0.72]
[1764698716573,12.39498138,139.51,139.49,17.028864]
[1764698716980,12.39498138,139.51,139.5,0.72]